fUST/lending_fUST_20250715
["ID","MTS","AMOUNT","RATE_DAILY","PERIOD"]
[372227348,1752557442296,-151.0,0.00020848,2]
[372227350,1752557442305,-151.0,0.00020848,3]
[372227352,1752557442315,-1703.89308345,0.00020873,2]
[372227354,1752557442324,-151.0,0.00020876,2]
[372227356,1752557442333,-247.18468876,0.00020876,3]
[372227358,1752557442342,-2318.47,0.000209,2]
[372227360,1752557442351,-7604.03709224,0.000209,4]
[372227362,1752557442360,-4956.43,0.000209,2]
[372227364,1752557442370,-223.58363869,0.00020903,2]
[372227366,1752557442379,-490.81952137,0.00020973,2]
[372227368,1752557442387,-500.0,0.00020973,2]
[372227370,1752557442396,-502.79331176,0.00020973,2]
[372227372,1752557442406,-502.63678757,0.00020973,2]
[372227373,1752557442415,-500.0,0.00020973,2]
[372227376,1752557442425,-500.0,0.00020973,2]
[372227377,1752557442434,-500.0,0.00020973,2]
[372227379,1752557442443,-500.58536681,0.00020973,2]
[372227382,1752557442453,-500.0,0.00020973,2]
[372227383,1752557442462,-500.0,0.00020973,2]
[372227386,1752557442472,-500.0,0.00020973,2]
[372227387,1752557442483,-500.0,0.00020973,2]
[372227390,1752557442492,-25000.0,0.00020982,2]
[372227391,1752557442502,-207.4,0.00020982,2]
[372227393,1752557442511,-559.44296133,0.00020994,2]
[372227396,1752557442520,-239.76126914,0.00020994,2]
[372227397,1752557442530,-239422.86531485,0.00020995,2]
[372227399,1752557442540,-28115.12,0.00021,2]
[372227402,1752557442549,-5888.0,0.00021022,2]
[372227403,1752557442558,-7604.03709224,0.00021072,4]
[372227406,1752557442568,-460.0,0.00021079,3]
[372227408,1752557442577,-460.0,0.00021079,3]
[372227409,1752557442587,-1635.96,0.00021079,3]
[372227412,1752557442596,-460.0,0.00021079,3]
[372227413,1752557442605,-460.0,0.00021095,3]
[372227415,1752557442615,-460.0,0.00021095,3]
[372227418,1752557442624,-582.30568966,0.00021095,3]
[372227420,1752557442634,-256.64130121,0.00021095,3]
[372227421,1752557442643,-460.0,0.00021095,3]
[372227423,1752557442653,-460.0,0.00021095,3]
[372227425,1752557442663,-460.0,0.00021095,3]
[372227428,1752557442672,-460.0,0.00021095,3]
[372227430,1752557442682,-460.0,0.00021095,3]
[372227432,1752557442691,-460.0,0.00021095,3]
[372227434,1752557442701,-460.0,0.00021095,3]
[372227436,1752557442710,-460.0,0.00021095,3]
[372227438,1752557442720,-460.0,0.00021095,3]
[372227439,1752557442730,-460.0,0.00021095,3]
[372227441,1752557442740,-698.94,0.00021095,3]
[372227443,1752557442749,-460.0,0.00021095,3]
[372227445,1752557442759,-460.0,0.00021095,3]
[372227447,1752557442768,-460.0,0.00021095,3]
[372227449,1752557442778,-460.0,0.00021095,3]
[372227452,1752557442789,-460.0,0.00021095,3]
[372227455,1752557442798,-540.17,0.00021095,3]
[372227457,1752557442808,-460.0,0.00021095,3]
[372227459,1752557442817,-460.0,0.00021095,3]
[372227461,1752557442827,-460.0,0.00021095,3]
[372227463,1752557442836,-523.39517473,0.00021095,3]
[372227464,1752557442846,-460.0,0.00021095,3]
[372227466,1752557442856,-460.0,0.00021095,3]
[372227469,1752557442865,-460.0,0.00021095,3]
[372227470,1752557442874,-460.0,0.00021095,3]
[372227472,1752557442883,-460.0,0.00021095,3]
[372227474,1752557442893,-644.29,0.00021095,3]
[372227477,1752557442902,-518.99,0.00021095,3]
[372227479,1752557442911,-460.0,0.00021095,3]
[372227481,1752557442920,-460.0,0.00021095,3]
[372227483,1752557442929,-698.47,0.00021095,3]
[372227485,1752557442938,-1177.51,0.00021095,3]
[372227487,1752557442947,-2012.44,0.00021095,3]
[372227489,1752557442956,-460.0,0.00021095,3]
[372227491,1752557442966,-460.0,0.00021095,3]
[372227493,1752557442975,-1389.25,0.00021095,3]
[372227495,1752557442985,-2902.91,0.00021095,3]
[372227496,1752557442994,-460.0,0.00021095,3]
[372227499,1752557443003,-460.0,0.00021095,3]
[372227501,1752557443012,-460.0,0.00021095,3]
[372227502,1752557443023,-460.0,0.00021095,3]
[372227504,1752557443032,-460.0,0.00021095,3]
[372227506,1752557443041,-244.36851286,0.00021095,3]
[372227508,1752557443050,-1900.9,0.00021095,3]
[372227510,1752557443059,-838.26,0.00021095,3]
[372227512,1752557443068,-673.92,0.00021095,3]
[372227514,1752557443079,-460.0,0.00021095,3]
[372227516,1752557443090,-460.0,0.00021095,3]
[372227518,1752557443099,-466.13,0.00021095,3]
[372227520,1752557443108,-460.0,0.00021095,3]
[372227522,1752557443118,-2222.62,0.00021095,3]
[372227524,1752557443128,-460.0,0.00021095,3]
[372227526,1752557443138,-460.0,0.00021095,3]
[372227528,1752557443147,-460.0,0.00021095,3]
[372227530,1752557443157,-540.07,0.00021095,3]
[372227532,1752557443167,-560.67,0.00021095,3]
[372227534,1752557443176,-873.4,0.00021095,3]
[372227536,1752557443185,-460.0,0.00021095,3]
[372227538,1752557443195,-487.63,0.00021095,3]
[372227540,1752557443205,-460.0,0.00021095,3]
[372227542,1752557443214,-816.62,0.00021095,3]
[372227544,1752557443224,-2620.63,0.00021095,3]
[372227546,1752557443233,-460.0,0.00021095,3]
[372227548,1752557443243,-300.34178847,0.00021095,3]
[372227550,1752557443252,-460.0,0.00021095,3]
[372227552,1752557443261,-1536.82,0.00021095,3]
[372227554,1752557443270,-460.0,0.00021095,3]
[372227556,1752557443280,-460.0,0.00021095,3]
[372227558,1752557443289,-571.09933751,0.00021095,3]
[372227560,1752557443298,-460.0,0.00021095,3]
[372227562,1752557443308,-460.0,0.00021095,3]
[372227564,1752557443318,-460.0,0.00021095,3]
[372227566,1752557443327,-460.0,0.00021095,3]
[372227568,1752557443337,-460.0,0.00021095,3]
[372227571,1752557443346,-460.0,0.00021095,3]
[372227573,1752557443356,-4493.21,0.00021095,3]
[372227575,1752557443365,-472.48,0.00021095,3]
[372227577,1752557443374,-986.63,0.00021095,3]
[372227579,1752557443384,-1262.48,0.00021095,3]
[372227581,1752557443393,-487.74,0.00021095,3]
[372227582,1752557443403,-460.0,0.00021095,3]
[372227584,1752557443412,-3866.61,0.00021095,3]
[372227586,1752557443421,-482.44,0.00021095,3]
[372227589,1752557443431,-3791.12,0.00021095,3]
[372227591,1752557443440,-968.21,0.00021095,3]
[372227592,1752557443449,-725.61,0.00021095,3]
[372227594,1752557443459,-956.49,0.00021095,3]
[372227597,1752557443468,-460.0,0.00021095,3]
[372227599,1752557443478,-4207.38,0.00021095,3]
[372227610,1752557443487,-460.0,0.00021095,3]
[372227612,1752557443589,-637.15,0.00021095,3]
[372227614,1752557443599,-460.0,0.00021095,3]
[372227616,1752557443609,-566.35,0.00021095,3]
[372227617,1752557443618,-485.22,0.00021095,3]
[372227618,1752557443628,-460.0,0.00021095,3]
[372227619,1752557443637,-177.9926445,0.00021096,2]
[372227620,1752557443647,-154.894964,0.00021096,2]
[372227621,1752557443656,-590.7876676,0.00021096,2]
[372227622,1752557443666,-159.7039591,0.00021096,2]
[372227623,1752557443675,-153.0,0.00021096,2]
[372227624,1752557443685,-153.0,0.00021096,2]
[372227625,1752557443695,-177.9926445,0.00021096,2]
[372227626,1752557443705,-159.7039591,0.00021096,2]
[372227627,1752557443715,-153.0,0.00021096,2]
[372227628,1752557443725,-576.7692041,0.00021096,2]
[372227629,1752557443737,-153.0,0.00021096,2]
[372227630,1752557443747,-576.7692041,0.00021096,2]
[372227631,1752557443757,-153.0,0.00021096,2]
[372227632,1752557443766,-159.7039591,0.00021096,2]
[372227633,1752557443776,-177.9926445,0.00021096,2]
[372227634,1752557443786,-159.7039591,0.00021096,2]
[372227635,1752557443795,-153.0,0.00021096,2]
[372227636,1752557443805,-576.7692041,0.00021096,2]
[372227637,1752557443815,-153.0,0.00021096,2]
[372227638,1752557443824,-177.9926445,0.00021096,2]
[372227640,1752557443834,-177.9926445,0.00021096,2]
[372227642,1752557443843,-153.0,0.00021096,2]
[372227644,1752557443852,-159.7039591,0.00021096,2]
[372227646,1752557443862,-153.0,0.00021096,2]
[372227648,1752557443873,-1703.89308343,0.00021109,2]
[372227650,1752557443883,-2534.0,0.00021186,2]
[372227652,1752557443893,-2818.0,0.00021241,2]
[372227654,1752557443902,-7604.03709224,0.00021245,4]
[372227656,1752557443911,-2534.0,0.00021286,2]
[372227658,1752557443920,-838.84061749,0.00021337,2]
[372227660,1752557443930,-230.76969291,0.00021337,2]
[372227662,1752557443939,-214.37129034,0.00021337,2]
[372227664,1752557443948,-160.0,0.00021337,2]
[372227666,1752557443959,-468.75,0.00021337,2]
[372227668,1752557443968,-160.0,0.00021337,2]
[372227670,1752557443977,-215.50840239,0.00021337,2]
[372227671,1752557443987,-160.0,0.00021343,2]
[372227674,1752557443996,-160.0,0.00021343,2]
[372227675,1752557444006,-160.0,0.00021343,2]
[372227678,1752557444015,-160.0,0.00021343,2]
[372227680,1752557444025,-160.0,0.00021343,2]
[372227681,1752557444034,-1703.89308343,0.00021345,2]
[372227683,1752557444044,-500.0,0.00021352,2]
[372227685,1752557444053,-460.0,0.00021353,3]
[372227687,1752557444062,-460.0,0.00021353,3]
[372227689,1752557444072,-1635.96,0.00021353,3]
[372227691,1752557444083,-451.24575484,0.00021353,3]
[372227693,1752557444093,-460.0,0.00021369,3]
[372227695,1752557444102,-460.0,0.00021369,3]
[372227697,1752557444111,-460.0,0.00021369,3]
[372227699,1752557444122,-460.0,0.00021369,3]
[372227701,1752557444131,-464.22433652,0.00021369,3]
[372227703,1752557444142,-460.0,0.00021369,3]
[372227705,1752557444152,-460.0,0.00021369,3]
[372227707,1752557444163,-460.0,0.00021369,3]
[372227709,1752557444173,-460.0,0.00021369,3]
[372227711,1752557444182,-460.0,0.00021369,3]
[372227713,1752557444191,-460.0,0.00021369,3]
[372227715,1752557444201,-698.94,0.00021369,3]
[372227717,1752557444212,-460.0,0.00021369,3]
[372227719,1752557444221,-460.0,0.00021369,3]
[372227721,1752557444232,-339.41000061,0.00021369,3]
[372227723,1752557444241,-604.17687746,0.00021369,3]
[372227725,1752557444251,-460.0,0.00021369,3]
[372227727,1752557444260,-540.17,0.00021369,3]
[372227729,1752557444269,-460.0,0.00021369,3]
[372227731,1752557444279,-460.0,0.00021369,3]
[372227733,1752557444288,-460.0,0.00021369,3]
[372227735,1752557444297,-460.0,0.00021369,3]
[372227737,1752557444306,-460.0,0.00021369,3]
[372227739,1752557444316,-460.0,0.00021369,3]
[372227741,1752557444326,-460.0,0.00021369,3]
[372227743,1752557444336,-460.0,0.00021369,3]
[372227745,1752557444345,-644.29,0.00021369,3]
[372227747,1752557444354,-518.99,0.00021369,3]
[372227749,1752557444363,-460.0,0.00021369,3]
[372227751,1752557444372,-698.47,0.00021369,3]
[372227753,1752557444382,-1177.51,0.00021369,3]
[372227755,1752557444391,-2012.44,0.00021369,3]
[372227757,1752557444401,-460.0,0.00021369,3]
[372227759,1752557444410,-460.0,0.00021369,3]
[372227761,1752557444420,-1389.25,0.00021369,3]
[372227762,1752557444429,-2902.91,0.00021369,3]
[372227764,1752557444439,-460.0,0.00021369,3]
[372227766,1752557444450,-460.0,0.00021369,3]
[372227768,1752557444460,-460.0,0.00021369,3]
[372227770,1752557444470,-460.0,0.00021369,3]
[372227772,1752557444481,-460.0,0.00021369,3]
[372227775,1752557444490,-838.26,0.00021369,3]
[372227777,1752557444500,-1900.9,0.00021369,3]
[372227778,1752557444510,-673.92,0.00021369,3]
[372227780,1752557444520,-460.0,0.00021369,3]
[372227782,1752557444529,-460.0,0.00021369,3]
[372227786,1752557444539,-466.13,0.00021369,3]
[372227787,1752557444549,-460.0,0.00021369,3]
[372227789,1752557444558,-2222.62,0.00021369,3]
[372227792,1752557444568,-460.0,0.00021369,3]
[372227796,1752557444578,-460.0,0.00021369,3]
[372227798,1752557444589,-460.0,0.00021369,3]
[372227799,1752557444598,-540.07,0.00021369,3]
[372227801,1752557444609,-560.67,0.00021369,3]
[372227803,1752557444620,-873.4,0.00021369,3]
[372227805,1752557444630,-460.0,0.00021369,3]
[372227807,1752557444640,-487.63,0.00021369,3]
[372227809,1752557444649,-460.0,0.00021369,3]
[372227811,1752557444659,-816.62,0.00021369,3]
[372227813,1752557444668,-2620.63,0.00021369,3]
[372227815,1752557444677,-460.0,0.00021369,3]
[372227817,1752557444687,-460.0,0.00021369,3]
[372227819,1752557444696,-1536.82,0.00021369,3]
[372227821,1752557444706,-460.0,0.00021369,3]
[372227823,1752557444715,-460.0,0.00021369,3]
[372227825,1752557444725,-460.0,0.00021369,3]
[372227827,1752557444736,-460.0,0.00021369,3]
[372227829,1752557444746,-460.0,0.00021369,3]
[372227831,1752557444756,-460.0,0.00021369,3]
[372227833,1752557444765,-460.0,0.00021369,3]
[372227835,1752557444775,-460.0,0.00021369,3]
[372227837,1752557444784,-4493.21,0.00021369,3]
[372227839,1752557444794,-472.48,0.00021369,3]
[372227841,1752557444803,-986.63,0.00021369,3]
[372227843,1752557444812,-1262.48,0.00021369,3]
[372227845,1752557444823,-487.74,0.00021369,3]
[372227847,1752557444832,-3866.61,0.00021369,3]
[372227849,1752557444842,-460.0,0.00021369,3]
[372227851,1752557444851,-482.44,0.00021369,3]
[372227853,1752557444861,-3791.12,0.00021369,3]
[372227855,1752557444870,-968.21,0.00021369,3]
[372227857,1752557444879,-725.61,0.00021369,3]
[372227859,1752557444889,-956.49,0.00021369,3]
[372227861,1752557444899,-183.71837378,0.00021369,3]
[372227863,1752557444909,-4207.38,0.00021369,3]
[372227865,1752557444919,-460.0,0.00021369,3]
[372227867,1752557444928,-637.15,0.00021369,3]
[372227869,1752557444939,-460.0,0.00021369,3]
[372227871,1752557444949,-566.35,0.00021369,3]
[372227873,1752557444959,-460.0,0.00021369,3]
[372227875,1752557444969,-7604.03709224,0.00021417,5]
[372227877,1752557444979,-2818.0,0.00021474,2]
[372227879,1752557444988,-420.0,0.00021484,2]
[372227881,1752557444998,-420.0,0.00021484,2]
[372227883,1752557445008,-63517.31247098,0.000215,2]
[372227885,1752557445018,-1000.0,0.00021521,2]
[372227887,1752557445027,-1000.0,0.00021521,2]
[372227889,1752557445036,-1000.0,0.00021521,2]
[372227891,1752557445045,-1000.0,0.00021521,2]
[372227894,1752557445055,-160.0,0.00021537,2]
[372227897,1752557445065,-1703.89308343,0.00021581,2]
[372227901,1752557445074,-7604.03709224,0.0002159,5]
[372227903,1752557445086,-525.51022752,0.00021597,2]
[372227906,1752557445095,-376.47138,0.00021599,8]
[372227908,1752557445105,-151.0,0.000216,4]
[372227909,1752557445115,-2534.0,0.00021608,2]
[372227911,1752557445124,-460.0,0.00021627,3]
[372227913,1752557445134,-1635.96,0.00021627,3]
[372227915,1752557445143,-460.0,0.00021643,3]
[372227917,1752557445153,-460.0,0.00021643,3]
[372227919,1752557445163,-460.0,0.00021643,3]
[372227921,1752557445173,-460.0,0.00021643,3]
[372227923,1752557445182,-460.0,0.00021643,3]
[372227925,1752557445191,-460.0,0.00021643,3]
[372227927,1752557445200,-460.0,0.00021643,3]
[372227929,1752557445209,-460.0,0.00021643,3]
[372227931,1752557445218,-698.94,0.00021643,3]
[372227933,1752557445228,-460.0,0.00021643,3]
[372227935,1752557445238,-460.0,0.00021643,3]
[372227937,1752557445247,-313.13,0.00021643,3]
[372227939,1752557445257,-540.17,0.00021643,3]
[372227941,1752557445266,-460.0,0.00021643,3]
[372227943,1752557445275,-460.0,0.00021643,3]
[372227945,1752557445285,-460.0,0.00021643,3]
[372227947,1752557445294,-460.0,0.00021643,3]
[372227949,1752557445303,-515.07894242,0.00021643,3]
[372227951,1752557445313,-460.0,0.00021643,3]
[372227953,1752557445322,-418.678113,0.00021643,2]
[372227955,1752557445331,-460.0,0.00021643,3]
[372227957,1752557445341,-460.0,0.00021643,3]
[372227959,1752557445351,-644.29,0.00021643,3]
[372227961,1752557445360,-518.99,0.00021643,3]
[372227963,1752557445369,-460.0,0.00021643,3]
[372227965,1752557445379,-698.47,0.00021643,3]
[372227967,1752557445388,-1177.51,0.00021643,3]
[372227969,1752557445398,-2012.44,0.00021643,3]
[372227971,1752557445407,-460.0,0.00021643,3]
[372227973,1752557445417,-460.0,0.00021643,3]
[372227975,1752557445426,-1389.25,0.00021643,3]
[372227977,1752557445435,-2902.91,0.00021643,3]
[372227979,1752557445444,-460.0,0.00021643,3]
[372227981,1752557445454,-460.0,0.00021643,3]
[372227983,1752557445464,-460.0,0.00021643,3]
[372227985,1752557445474,-460.0,0.00021643,3]
[372227987,1752557445484,-838.26,0.00021643,3]
[372227989,1752557445494,-1900.9,0.00021643,3]
[372227991,1752557445504,-673.92,0.00021643,3]
[372227993,1752557445513,-460.0,0.00021643,3]
[372227995,1752557445523,-460.0,0.00021643,3]
[372227997,1752557445532,-466.13,0.00021643,3]
[372227999,1752557445541,-460.0,0.00021643,3]
[372228001,1752557445552,-2222.62,0.00021643,3]
[372228003,1752557445561,-460.0,0.00021643,3]
[372228005,1752557445571,-460.0,0.00021643,3]
[372228007,1752557445581,-460.0,0.00021643,3]
[372228009,1752557445591,-540.07,0.00021643,3]
[372228011,1752557445600,-560.67,0.00021643,3]
[372228013,1752557445610,-873.4,0.00021643,3]
[372228015,1752557445619,-460.0,0.00021643,3]
[372228017,1752557445629,-487.63,0.00021643,3]
[372228019,1752557445638,-460.0,0.00021643,3]
[372228021,1752557445648,-816.62,0.00021643,3]
[372228023,1752557445657,-2620.63,0.00021643,3]
[372228025,1752557445666,-460.0,0.00021643,3]
[372228027,1752557445676,-460.0,0.00021643,3]
[372228029,1752557445685,-1536.82,0.00021643,3]
[372228039,1752557445773,-460.0,0.00021643,3]
[372228042,1752557445791,-164.105507,0.00021643,2]
[372228044,1752557445801,-460.0,0.00021643,3]
[372228046,1752557445811,-460.0,0.00021643,3]
[372228048,1752557445820,-554.60881252,0.00021643,3]
[372228050,1752557445830,-460.0,0.00021643,3]
[372228051,1752557445839,-460.0,0.00021643,3]
[372228053,1752557445849,-446.76394229,0.00021643,3]
[372228055,1752557445859,-460.0,0.00021643,3]
[372228058,1752557445868,-4493.21,0.00021643,3]
[372228062,1752557445878,-472.48,0.00021643,3]
[372228064,1752557445887,-986.63,0.00021643,3]
[372228066,1752557445897,-1262.48,0.00021643,3]
[372228068,1752557445907,-487.74,0.00021643,3]
[372228070,1752557445916,-151.0,0.00021643,2]
[372228072,1752557445925,-3866.61,0.00021643,3]
[372228074,1752557445935,-460.0,0.00021643,3]
[372228076,1752557445944,-482.44,0.00021643,3]
[372228078,1752557445953,-3791.12,0.00021643,3]
[372228080,1752557445963,-968.21,0.00021643,3]
[372228082,1752557445972,-725.61,0.00021643,3]
[372228084,1752557445983,-956.49,0.00021643,3]
[372228086,1752557445992,-4207.38,0.00021643,3]
[372228088,1752557446001,-460.0,0.00021643,3]
[372228090,1752557446011,-637.15,0.00021643,3]
[372228092,1752557446020,-506.846544,0.00021643,2]
[372228094,1752557446029,-151.0,0.00021643,2]
[372228096,1752557446039,-506.846544,0.00021643,2]
[372228098,1752557446049,-460.0,0.00021643,3]
[372228100,1752557446060,-566.35,0.00021643,3]
[372228102,1752557446069,-2125.0280709,0.00021676,2]
[372228104,1752557446083,-151.0,0.000217,4]
[372228106,1752557446092,-2818.0,0.00021705,2]
[372228108,1752557446101,-405.07209986,0.00021707,2]
[372228110,1752557446111,-7604.03709224,0.00021762,5]
[372228112,1752557446120,-1703.89308343,0.00021817,2]
[372228114,1752557446130,-151.0,0.00021822,2]
[372228115,1752557446139,-151.0,0.00021822,2]
[372228116,1752557446148,-151.0,0.00021822,2]
[372228117,1752557446158,-2818.0,0.00021828,2]
[372228118,1752557446169,-1000.0,0.00021856,5]
[372228119,1752557446178,-6604.5727777,0.00021887,2]
[372228120,1752557446187,-2318.47,0.000219,2]
[372228121,1752557446197,-151.0,0.000219,3]
[372228122,1752557446206,-4956.43,0.000219,2]
[372228123,1752557446216,-460.0,0.00021901,3]
[372228124,1752557446225,-1635.96,0.00021901,3]
[372228125,1752557446237,-322.04,0.00021907,3]
[372228126,1752557446247,-150000.0,0.00021917,2]
[372228127,1752557446256,-150000.0,0.00021917,2]
[372228128,1752557446266,-49149.48970578,0.00021917,2]
[372228129,1752557446411,-4424.23979782,0.00021917,2]
[372228130,1752557446423,-364.52002253,0.00021917,2]
[372228131,1752557446435,-2238.04190898,0.00021917,2]
[372228132,1752557446446,-1293.46874142,0.00021917,2]
[372228133,1752557446458,-444.99950906,0.00021917,2]
[372228134,1752557446470,-1359.47564834,0.00021917,2]
[372228135,1752557446484,-1033.58533371,0.00021917,2]
[372228136,1752557446496,-1000.9999859,0.00021917,2]
[372228141,1752557446778,-3341.4627798,0.00021917,2]
[372228142,1752557446789,-659.80018374,0.00021917,2]
[372228143,1752557446801,-401.42757738,0.00021917,2]
[372228144,1752557446812,-291.300155,0.00021917,2]
[372228145,1752557447031,-7706.8151858,0.000209,2]
[372228146,1752557447042,-485.22,0.00021369,3]
[372228147,1752557447051,-460.0,0.00021643,3]
[372228148,1752557447062,-485.22,0.00021643,3]
[372228149,1752557447072,-77533.86214678,0.00021917,2]
[372228150,1752557447092,-6463.32650376,0.00021917,2]
[372228151,1752557447103,-460.0,0.00021917,3]
[372228152,1752557447112,-460.0,0.00021917,3]
[372228153,1752557447127,-460.0,0.00021917,3]
[372228154,1752557447136,-151.0,0.00021917,2]
[372228155,1752557447146,-151.0,0.00021917,2]
[372228156,1752557447156,-157.889506,0.00021917,2]
[372228157,1752557447166,-151.0,0.00021917,2]
[372228158,1752557447175,-151.0,0.00021917,2]
[372228159,1752557447185,-151.0,0.00021917,2]
[372228160,1752557447194,-460.0,0.00021917,3]
[372228161,1752557447203,-460.0,0.00021917,3]
[372228162,1752557447213,-460.0,0.00021917,3]
[372228163,1752557447222,-460.0,0.00021917,3]
[372228164,1752557447233,-151.0,0.00021917,2]
[372228165,1752557447243,-151.0,0.00021917,2]
[372228166,1752557447252,-521.740457,0.00021917,2]
[372228167,1752557447261,-521.740457,0.00021917,2]
[372228168,1752557447271,-698.94,0.00021917,3]
[372228169,1752557447281,-460.0,0.00021917,3]
[372228170,1752557447290,-151.0,0.00021917,2]
[372228171,1752557447299,-151.0,0.00021917,2]
[372228172,1752557447309,-460.0,0.00021917,3]
[372228173,1752557447318,-1031.374122,0.00021917,2]
[372228174,1752557447328,-1031.374122,0.00021917,2]
[372228175,1752557447337,-151.0,0.00021917,2]
[372228176,1752557447346,-217.154332,0.00021917,2]
[372228177,1752557447355,-217.154332,0.00021917,2]
[372228178,1752557447365,-553.465009,0.00021917,2]
[372228179,1752557447374,-553.465009,0.00021917,2]
[372228180,1752557447384,-540.17,0.00021917,3]
[372228181,1752557447394,-460.0,0.00021917,3]
[372228182,1752557447403,-460.0,0.00021917,3]
[372228183,1752557447413,-460.0,0.00021917,3]
[372228185,1752557447422,-151.0,0.00021917,2]
[372228187,1752557447432,-151.0,0.00021917,2]
[372228189,1752557447441,-151.0,0.00021917,2]
[372228191,1752557447451,-151.0,0.00021917,2]
[372228193,1752557447460,-151.0,0.00021917,2]
[372228195,1752557447470,-152.214901,0.00021917,2]
[372228197,1752557447480,-151.0,0.00021917,2]
[372228199,1752557447489,-460.0,0.00021917,3]
[372228201,1752557447500,-151.0,0.00021917,2]
[372228203,1752557447510,-460.0,0.00021917,3]
[372228205,1752557447519,-460.0,0.00021917,3]
[372228207,1752557447528,-151.0,0.00021917,2]
[372228209,1752557447538,-644.29,0.00021917,3]
[372228211,1752557447547,-518.99,0.00021917,3]
[372228213,1752557447557,-460.0,0.00021917,3]
[372228215,1752557447566,-151.0,0.00021917,2]
[372228217,1752557447576,-698.47,0.00021917,3]
[372228220,1752557447585,-151.0,0.00021917,2]
[372228222,1752557447595,-2012.44,0.00021917,3]
[372228224,1752557447604,-151.0,0.00021917,2]
[372228235,1752557447614,-151.0,0.00021917,2]
[372228237,1752557447715,-151.0,0.00021917,2]
[372228239,1752557447724,-460.0,0.00021917,3]
[372228241,1752557447735,-460.0,0.00021917,3]
[372228243,1752557447744,-151.0,0.00021917,2]
[372228245,1752557447754,-1389.25,0.00021917,3]
[372228247,1752557447763,-2902.91,0.00021917,3]
[372228249,1752557447772,-800.446242,0.00021917,2]
[372228251,1752557447781,-800.446242,0.00021917,2]
[372228253,1752557447791,-151.0,0.00021917,2]
[372228255,1752557447800,-151.0,0.00021917,2]
[372228257,1752557447810,-460.0,0.00021917,3]
[372228259,1752557447819,-460.0,0.00021917,3]
[372228261,1752557447828,-460.0,0.00021917,3]
[372228263,1752557447838,-460.0,0.00021917,3]
[372228265,1752557447847,-838.26,0.00021917,3]
[372228267,1752557447858,-673.92,0.00021917,3]
[372228269,1752557447868,-1900.9,0.00021917,3]
[372228271,1752557447878,-460.0,0.00021917,3]
[372228273,1752557447888,-460.0,0.00021917,3]
[372228275,1752557447898,-258.236757,0.00021917,2]
[372228277,1752557447907,-258.236757,0.00021917,2]
[372228279,1752557447916,-466.13,0.00021917,3]
[372228281,1752557447926,-460.0,0.00021917,3]
[372228283,1752557447935,-1115.303068,0.00021917,2]
[372228285,1752557447944,-273.655283,0.00021917,2]
[372228287,1752557447954,-2222.62,0.00021917,3]
[372228289,1752557447963,-1115.303068,0.00021917,2]
[372228291,1752557447973,-460.0,0.00021917,3]
[372228293,1752557447984,-460.0,0.00021917,3]
[372228295,1752557447993,-151.0,0.00021917,2]
[372228297,1752557448002,-460.0,0.00021917,3]
[372228299,1752557448012,-540.07,0.00021917,3]